fUSD/lending_fUSD_20260315
["ID","MTS","AMOUNT","RATE_DAILY","PERIOD"]
[408384523,1773537044136,-500.0,0.00021754,2]
[408384524,1773537044145,-500.0,0.00021754,2]
[408384525,1773537044155,-150.0,0.00021754,2]
[408384526,1773537044165,-500.0,0.00021754,2]
[408384527,1773537044174,-150.0,0.00021754,2]
[408384528,1773537044184,-500.0,0.00021754,2]
[408384529,1773537044194,-500.0,0.00021754,2]
[408384530,1773537044202,-500.0,0.00021754,2]
[408384531,1773537044215,-500.0,0.00021754,2]
[408384532,1773537044225,-500.0,0.00021754,2]
[408384533,1773537044235,-500.0,0.00021754,2]
[408384534,1773537044245,-500.0,0.00021754,2]
[408384535,1773537044255,-500.0,0.00021754,2]
[408384536,1773537044265,-500.0,0.00021754,2]
[408384537,1773537044275,-500.0,0.00021754,2]
[408384538,1773537044284,-500.0,0.00021754,2]
[408384539,1773537044294,-500.0,0.00021754,2]
[408384540,1773537044303,-500.0,0.00021754,2]
[408384541,1773537044313,-500.0,0.00021754,2]
[408384542,1773537044322,-150.0,0.00021754,2]
[408384543,1773537044331,-500.0,0.00021754,2]
[408384544,1773537044341,-500.0,0.00021754,2]
[408384545,1773537044350,-500.0,0.00021754,2]
[408384546,1773537044359,-150.0,0.00021754,2]
[408384547,1773537044368,-500.0,0.00021754,2]
[408384548,1773537044378,-150.0,0.00021754,2]
[408384549,1773537044387,-500.0,0.00021754,2]
[408384550,1773537044396,-534.0,0.00021754,2]
[408384551,1773537044405,-500.0,0.00021754,2]
[408384552,1773537044418,-1204.68136866,0.0002178,2]
[408384553,1773537044427,-150.14054899,0.00021809,2]
[408384554,1773537044437,-500.0,0.00021809,2]
[408384555,1773537044447,-150.38339506,0.00021809,2]
[408384556,1773537044456,-150.0,0.00021809,2]
[408384557,1773537044466,-150.0,0.00021809,2]
[408384558,1773537044475,-500.0,0.00021809,2]
[408384559,1773537044485,-150.0,0.00021809,2]
[408384560,1773537044494,-500.0,0.00021809,2]
[408384561,1773537044504,-500.0,0.00021809,2]
[408384562,1773537044513,-151.17604602,0.00021809,2]
[408384563,1773537044524,-150.36304931,0.00021809,2]
[408384564,1773537044533,-150.5231356,0.00021809,2]
[408384565,1773537044543,-506.83498786,0.00021809,2]
[408384566,1773537044552,-150.0,0.00021809,2]
[408384567,1773537044562,-207.11816574,0.00021809,2]
[408384568,1773537044571,-500.0,0.00021809,2]
[408384569,1773537044581,-150.20209622,0.00021809,2]
[408384570,1773537044590,-500.0,0.00021809,2]
[408384571,1773537044600,-500.0,0.00021809,2]
[408384572,1773537044612,-525.17021168,0.00021809,2]
[408384573,1773537044623,-150.0,0.00021809,2]
[408384574,1773537044632,-500.0,0.00021809,2]
[408384575,1773537044642,-500.0,0.00021809,2]
[408384576,1773537044651,-500.0,0.00021809,2]
[408384577,1773537044661,-500.0,0.00021809,2]
[408384578,1773537044670,-500.0,0.00021809,2]
[408384579,1773537044680,-500.0,0.00021809,2]
[408384580,1773537044689,-551.25822357,0.00021809,2]
[408384581,1773537044699,-500.0,0.00021809,2]
[408384582,1773537044708,-500.0,0.00021809,2]
[408384583,1773537044718,-500.0,0.00021809,2]
[408384584,1773537044727,-500.0,0.00021809,2]
[408384585,1773537044736,-600.74757442,0.00021809,2]
[408384586,1773537044745,-500.0,0.00021809,2]
[408384587,1773537044755,-500.0,0.00021809,2]
[408384588,1773537044764,-150.0,0.00021809,2]
[408384589,1773537044774,-500.0,0.00021809,2]
[408384590,1773537044783,-500.0,0.00021809,2]
[408384591,1773537044792,-500.0,0.00021809,2]
[408384592,1773537044801,-150.0,0.00021809,2]
[408384593,1773537044814,-500.0,0.00021809,2]
[408384594,1773537044823,-500.0,0.00021809,2]
[408384595,1773537044832,-534.0,0.00021809,2]
[408384596,1773537044841,-500.0,0.00021809,2]
[408384597,1773537044851,-500.0,0.00021864,2]
[408384598,1773537044860,-150.0,0.00021864,2]
[408384599,1773537044869,-200.0,0.00021864,2]
[408384600,1773537044878,-500.0,0.00021864,2]
[408384601,1773537044887,-500.0,0.00021864,2]
[408384602,1773537044896,-500.0,0.00021864,2]
[408384603,1773537044906,-150.0,0.00021864,2]
[408384604,1773537044915,-500.0,0.00021864,2]
[408384605,1773537044924,-500.0,0.00021864,2]
[408384606,1773537044933,-500.0,0.00021864,2]
[408384607,1773537044943,-150.0,0.00021864,2]
[408384608,1773537044959,-500.0,0.00021864,2]
[408384609,1773537044974,-500.0,0.00021864,2]
[408384610,1773537044990,-500.0,0.00021864,2]
[408384611,1773537045005,-500.0,0.00021864,2]
[408384612,1773537045019,-500.0,0.00021864,2]
[408384613,1773537045029,-500.0,0.00021864,2]
[408384614,1773537045040,-500.0,0.00021864,2]
[408384615,1773537045053,-500.0,0.00021864,2]
[408384616,1773537045065,-437.81160901,0.00021864,2]
[408384617,1773537045078,-500.0,0.00021864,2]
[408384618,1773537045090,-500.0,0.00021864,2]
[408384619,1773537045103,-500.0,0.00021864,2]
[408384620,1773537045116,-150.0,0.00021864,2]
[408384621,1773537045130,-355.62536793,0.00021864,2]
[408384622,1773537045143,-500.0,0.00021864,2]
[408384623,1773537045155,-500.0,0.00021864,2]
[408384624,1773537045166,-451.97192574,0.00021864,2]
[408384625,1773537045177,-356.83426636,0.00021864,2]
[408384626,1773537045187,-534.0,0.00021864,2]
[408384627,1773537045199,-500.0,0.00021864,2]
[408384628,1773537045212,-153.58,0.00021918,2]
[408384629,1773537045227,-500.0,0.00021918,2]
[408384630,1773537045240,-150.0,0.00021918,2]
[408384631,1773537045254,-552.0,0.00021918,2]
[408384632,1773537045266,-300.0,0.00021918,2]
[408384633,1773537045278,-300.0,0.00021918,2]
[408384634,1773537045291,-414.48543571,0.00021918,2]
[408384635,1773537045304,-500.0,0.00021918,2]
[408384636,1773537045315,-500.0,0.00021918,2]
[408384637,1773537045329,-150.0,0.00021918,2]
[408384638,1773537045343,-500.0,0.00021918,2]
[408384639,1773537045355,-500.0,0.00021918,2]
[408384640,1773537045381,-500.0,0.00021918,2]
[408384641,1773537045394,-500.0,0.00021918,2]
[408384642,1773537045409,-500.0,0.00021918,2]
[408384643,1773537045420,-500.0,0.00021918,2]
[408384644,1773537045432,-500.0,0.00021918,2]
[408384645,1773537045444,-253.16351353,0.00021918,2]
[408384646,1773537045458,-500.0,0.00021918,2]
[408384647,1773537045478,-500.0,0.00021918,2]
[408384648,1773537045493,-500.0,0.00021918,2]
[408384649,1773537045506,-250.58262965,0.00021918,2]
[408384650,1773537045520,-500.0,0.00021918,2]
[408384651,1773537045534,-500.0,0.00021918,2]
[408384652,1773537045544,-534.0,0.00021918,2]
[408384653,1773537045554,-500.0,0.00021918,2]
[408384654,1773537045565,-500.0,0.00021973,2]
[408384655,1773537045576,-406.55779082,0.00021973,2]
[408384656,1773537045590,-309.8782102,0.00021973,2]
[408384657,1773537045605,-150.0,0.00021973,2]
[408384658,1773537045616,-500.0,0.00021973,2]
[408384659,1773537045626,-500.0,0.00021973,2]
[408384660,1773537045635,-500.0,0.00021973,2]
[408384661,1773537045645,-500.0,0.00021973,2]
[408384662,1773537045656,-500.0,0.00021973,2]
[408384663,1773537045667,-500.0,0.00021973,2]
[408384664,1773537045679,-354.90199074,0.00021973,2]
[408384665,1773537045692,-500.0,0.00021973,2]
[408384666,1773537045706,-500.0,0.00021973,2]
[408384667,1773537045720,-500.0,0.00021973,2]
[408384668,1773537045733,-500.0,0.00021973,2]
[408384669,1773537045745,-534.0,0.00021973,2]
[408384670,1773537045758,-177.62322685,0.00021973,2]
[408384671,1773537045769,-344242.42861446,0.00022,4]
[408384672,1773537045783,-164.92,0.00022,2]
[408384673,1773537045795,-160.0,0.00022,2]
[408384674,1773537045807,-250.0,0.00022028,2]
[408384675,1773537045820,-500.0,0.00022028,2]
[408384676,1773537045834,-500.0,0.00022028,2]
[408384677,1773537045848,-500.0,0.00022028,2]
[408384678,1773537045861,-500.0,0.00022028,2]
[408384679,1773537045874,-162.33399582,0.00022028,2]
[408384680,1773537045890,-500.0,0.00022028,2]
[408384681,1773537045902,-500.0,0.00022028,2]
[408384682,1773537045913,-500.0,0.00022028,2]
[408384683,1773537045925,-500.0,0.00022028,2]
[408384684,1773537045937,-500.0,0.00022028,2]
[408384685,1773537045949,-534.0,0.00022028,2]
[408384686,1773537045962,-500.0,0.00022083,2]
[408384687,1773537045974,-150.0,0.00022083,2]
[408384688,1773537045990,-500.0,0.00022083,2]
[408384689,1773537046001,-500.0,0.00022083,2]
[408384690,1773537046013,-500.0,0.00022083,2]
[408384691,1773537046024,-500.0,0.00022083,2]
[408384692,1773537046036,-500.0,0.00022083,2]
[408384693,1773537046048,-500.0,0.00022083,2]
[408384694,1773537046059,-500.0,0.00022083,2]
[408384695,1773537046072,-534.0,0.00022083,2]
[408384696,1773537046087,-500.0,0.00022138,2]
[408384697,1773537046099,-500.0,0.00022138,2]
[408384698,1773537046111,-500.0,0.00022138,2]
[408384699,1773537046123,-500.0,0.00022138,2]
[408384700,1773537046134,-500.0,0.00022138,2]
[408384701,1773537046146,-204.83861542,0.00022138,2]
[408384702,1773537046157,-310.26450051,0.00022138,2]
[408384703,1773537046169,-500.0,0.00022138,2]
[408384704,1773537046180,-534.0,0.00022138,2]
[408384705,1773537046192,-4404.03,0.00022185,2]
[408384707,1773537046203,-500.0,0.00022192,2]
[408384709,1773537046215,-500.0,0.00022192,2]
[408384711,1773537046227,-500.0,0.00022192,2]
[408384713,1773537046238,-500.0,0.00022192,2]
[408384714,1773537046249,-500.0,0.00022192,2]
[408384715,1773537046260,-500.0,0.00022192,2]
[408384716,1773537046271,-534.0,0.00022192,2]
[408384717,1773537046282,-500.0,0.00022247,2]
[408384718,1773537046293,-500.0,0.00022247,2]
[408384719,1773537046303,-500.0,0.00022247,2]
[408384720,1773537046315,-500.0,0.00022247,2]
[408384721,1773537046326,-500.0,0.00022247,2]
[408384722,1773537046336,-500.0,0.00022247,2]
[408384723,1773537046347,-534.0,0.00022247,2]
[408384724,1773537046357,-2000.0,0.00022249,2]
[408384725,1773537046368,-507.0,0.0002225,6]
[408384726,1773537046379,-12996.773603,0.0002225,2]
[408384727,1773537046391,-500.0,0.00022302,2]
[408384728,1773537046402,-500.0,0.00022302,2]
[408384729,1773537046413,-500.0,0.00022302,2]
[408384730,1773537046424,-500.0,0.00022302,2]
[408384731,1773537046435,-500.0,0.00022302,2]
[408384732,1773537046446,-500.0,0.00022302,2]
[408384733,1773537046456,-534.0,0.00022302,2]
[408384734,1773537046471,-500.0,0.00022357,2]
[408384735,1773537046482,-500.0,0.00022357,2]
[408384736,1773537046493,-336.58574152,0.00022357,2]
[408384737,1773537046506,-267.0,0.00022357,2]
[408384738,1773537046516,-500.0,0.00022357,2]
[408384739,1773537046527,-500.0,0.00022357,2]
[408384740,1773537046538,-534.0,0.00022357,2]
[408384741,1773537046549,-4046.88771924,0.000224,2]
[408384742,1773537046559,-168.21,0.000224,60]
[408384743,1773537046572,-500.0,0.00022412,2]
[408384744,1773537046583,-500.0,0.00022412,2]
[408384745,1773537046595,-154.52031355,0.00022412,2]
[408384746,1773537046607,-500.0,0.00022412,2]
[408384747,1773537046619,-534.0,0.00022412,2]
[408384748,1773537046630,-500.0,0.00022466,2]
[408384749,1773537046641,-450.0,0.00022466,2]
[408384750,1773537046654,-534.0,0.00022466,2]
[408384752,1773537046666,-500.0,0.00022466,2]
[408384753,1773537046679,-500.0,0.00022521,2]
[408384754,1773537046691,-534.0,0.00022521,2]
[408384755,1773537046700,-450.0,0.00022521,2]
[408384756,1773537046710,-175.35428283,0.00022576,2]
[408384757,1773537046719,-534.0,0.00022576,2]
[408384758,1773537046729,-153.51,0.00022578,2]
[408384759,1773537046739,-534.0,0.00022631,2]
[408384760,1773537046748,-534.0,0.00022686,2]
[408384761,1773537046757,-534.0,0.0002274,2]
[408384762,1773537046767,-534.0,0.00022795,2]
[408384770,1773537046975,-534.0,0.0002285,2]
[408384771,1773537046993,-4404.03,0.00022857,2]
[408384772,1773537047004,-534.0,0.00022905,2]
[408384773,1773537047013,-534.0,0.00022959,2]
[408384774,1773537047023,-450.0,0.00023,2]
[408384775,1773537047033,-555.39513834,0.00023014,2]
[408384776,1773537047042,-1566.0,0.00023137,2]
[408384777,1773537047052,-378.50205694,0.00023184,2]
[408384778,1773537047061,-500.0,0.00023184,2]
[408384779,1773537047070,-1500.0,0.00023184,2]
[408384780,1773537047080,-1500.0,0.00023184,2]
[408384781,1773537047089,-500.0,0.00023184,2]
[408384782,1773537047101,-1092.44280863,0.00023184,2]
[408384783,1773537047111,-500.0,0.00023184,2]
[408384784,1773537047120,-500.0,0.00023184,2]
[408384785,1773537047130,-500.0,0.00023184,2]
[408384786,1773537047139,-151.0,0.00023184,2]
[408384787,1773537047148,-500.0,0.00023184,2]
[408384788,1773537047157,-500.0,0.00023184,2]
[408384789,1773537047170,-500.0,0.00023184,2]
[408384790,1773537047179,-500.0,0.00023184,2]
[408384791,1773537047188,-500.0,0.00023184,2]
[408384792,1773537047198,-500.0,0.00023184,2]
[408384793,1773537047207,-500.0,0.00023184,2]
[408384794,1773537047216,-250.0,0.00023184,2]
[408384795,1773537047226,-250.0,0.00023184,2]
[408384796,1773537047236,-250.0,0.00023184,2]
[408384797,1773537047245,-250.0,0.00023184,2]
[408384798,1773537047255,-250.0,0.00023184,2]
[408384799,1773537047264,-250.0,0.00023184,2]
[408384800,1773537047273,-250.0,0.00023184,2]
[408384801,1773537047282,-250.0,0.00023184,2]
[408384802,1773537047291,-250.0,0.00023184,2]
[408384803,1773537047300,-266.40084392,0.00023184,2]
[408384804,1773537047310,-250.0,0.00023184,2]
[408384805,1773537047319,-250.0,0.00023184,2]
[408384806,1773537047328,-366.4450515,0.00023184,2]
[408384807,1773537047339,-500.0,0.00023184,2]
[408384808,1773537047349,-500.0,0.00023184,2]
[408384809,1773537047358,-500.0,0.00023184,2]
[408384810,1773537047370,-500.0,0.00023184,2]
[408384811,1773537047379,-500.0,0.00023184,2]
[408384812,1773537047388,-500.0,0.00023184,2]
[408384813,1773537047397,-500.0,0.00023184,2]
[408384814,1773537047406,-500.0,0.00023184,2]
[408384815,1773537047415,-500.0,0.00023184,2]
[408384816,1773537047424,-500.0,0.00023184,2]
[408384817,1773537047434,-500.0,0.00023184,2]
[408384818,1773537047443,-500.0,0.00023239,2]
[408384819,1773537047452,-151.0,0.00023239,2]
[408384820,1773537047462,-500.0,0.00023294,2]
[408384821,1773537047471,-151.0,0.00023294,2]
[408384822,1773537047480,-500.0,0.00023349,2]
[408384823,1773537047489,-151.0,0.00023349,2]
[408384824,1773537047498,-500.0,0.00023404,2]
[408384825,1773537047508,-151.0,0.00023404,2]
[408384826,1773537047517,-500.0,0.00023459,2]
[408384827,1773537047526,-151.0,0.00023459,2]
[408384828,1773537047535,-150.0,0.00023481,2]
[408384829,1773537047546,-1260.0,0.00023481,2]
[408384830,1773537047556,-321.68368625,0.000235,2]
[408384831,1773537047565,-1214.0,0.00023508,2]
[408384832,1773537047575,-500.0,0.00023514,2]
[408384833,1773537047584,-151.0,0.00023514,2]
[408384834,1773537047594,-12996.773603,0.00023525,2]
[408384835,1773537047603,-4404.03,0.00023529,2]
[408384836,1773537047612,-500.0,0.00023569,2]
[408384837,1773537047622,-151.0,0.00023569,2]
[408384838,1773537047632,-153.51,0.00023604,2]
[408384839,1773537047643,-1996.0,0.00023609,2]
[408384840,1773537047653,-500.0,0.00023624,2]
[408384841,1773537047662,-157.20679509,0.00023624,2]
[408384842,1773537047672,-1204.68136866,0.0002366,2]
[408384843,1773537047681,-500.0,0.00023679,2]
[408384844,1773537047691,-150.0,0.00023705,2]
[408384845,1773537047700,-500.0,0.00023734,2]
[408384846,1773537047709,-4046.88771924,0.00023774,2]
[408384847,1773537047718,-184.01,0.00023864,2]
[408384848,1773537047728,-334.58,0.00023891,2]
[408384849,1773537047737,-1446.0,0.00024123,5]
[408384850,1773537047748,-153.58,0.00024201,2]
[408384851,1773537047757,-4404.03,0.00024202,2]
[408384852,1773537047766,-436.0,0.00024466,2]
[408384853,1773537047776,-151.0,0.00024473,2]
[408384854,1773537047785,-2000.0,0.00024474,2]
[408384855,1773537047794,-202.07,0.000245,2]
[408384856,1773537047804,-495.27072421,0.00024525,2]
[408384857,1773537047813,-153.51,0.00024631,2]
[408384858,1773537047823,-1000.0,0.00024658,2]
[408384859,1773537047832,-150.0,0.00024658,2]
[408384860,1773537047842,-203.227023,0.000248,2]
[408384861,1773537047851,-4404.03,0.00024874,2]
[408384862,1773537047860,-156.157635,0.000249,2]
[408384863,1773537047869,-151.0,0.000249,2]
[408384864,1773537047879,-235682.21417182,0.000249,3]
[408384865,1773537048059,-5917.01914863,0.00017265,2]
[408384866,1773537048069,-12996.773603,0.000248,2]
[408384867,1773537048078,-278582.27814222,0.000249,3]
[408384868,1773537048094,-337.66218521,0.000249,3]
[408384869,1773537068801,4761.370525,7.945e-05,2]
[408384870,1773537533779,300.0,0.000126,4]
[408384871,1773537535875,700.0,0.000127,4]
[408384872,1773537538096,1000.0,0.000128,4]
[408384873,1773537540185,1400.0,0.000129,4]
[408384874,1773537548562,222.0,0.0002,120]
[408384875,1773537582407,1486.73502477,2.2e-06,2]
[408384876,1773537768837,254.31,0.00010764,2]
[408384877,1773537769025,254.31,0.0001184,2]
[408384878,1773537769235,254.31,0.00012917,2]
[408384879,1773537835029,-481.92881882,0.00013026,2]
[408384880,1773537835062,-257.0,0.00013027,2]
[408384881,1773537835091,-250.0,0.00013027,2]
[408384882,1773537835119,-315.12163548,0.00013027,2]
[408384883,1773537835157,-481.9288188,0.00013077,2]
[408384884,1773537835188,-250.0,0.00013077,2]
[408384885,1773537835217,-1200.0,0.00013126,2]
[408384886,1773537835245,-150.0,0.00013126,2]
[408384887,1773537835273,-300.0,0.00013126,2]
[408384888,1773537835448,-3374.01061263,0.00013127,2]
[408384889,1773537835475,-614.30174973,0.00013127,2]
[408384890,1773537835506,-315.12163548,0.00013127,2]
[408384891,1773537835535,-315.12163548,0.00013127,2]
[408384892,1773537835663,-2500.0,0.00013127,2]
[408384893,1773537835696,-555.0,0.00013131,2]
[408384894,1773537835725,-555.0,0.00013131,2]
[408384895,1773537835753,-555.0,0.00013131,2]
[408384896,1773537835781,-500.0,0.00013131,2]
[408384897,1773537835809,-150.99,0.00013131,2]
[408384898,1773537835957,-0.02,0.00013131,2]
[408384899,1773537836346,-659.46740592,0.00013131,2]
[408384900,1773537837802,-659.50740592,0.00013131,2]
[408384901,1773537837826,-8680.99518816,0.00013131,2]
[408384902,1773537837914,-555.0,0.00013187,2]
[408384903,1773537837942,-205.53219807,0.00013217,2]
[408384904,1773537837977,-500.0,0.00013219,2]
[408384905,1773537838006,-500.0,0.00013219,2]
[408384906,1773537838036,-500.0,0.00013219,2]
[408384907,1773537838066,-513.70449455,0.00013219,2]
[408384908,1773537838094,-151.0,0.00013219,2]
[408384909,1773537838122,-151.0,0.00013219,2]
[408384910,1773537838149,-151.0,0.00013219,2]
[408384911,1773537838177,-151.0,0.00013219,2]
[408384912,1773537838204,-151.0,0.00013219,2]
[408384913,1773537838232,-151.0,0.00013219,2]
[408384914,1773537838260,-151.0,0.00013219,2]
[408384915,1773537838522,-151.0,0.00013219,2]
[408384916,1773537838555,-151.0,0.00013219,2]
[408384917,1773537838581,-151.0,0.00013219,2]
[408384918,1773537838611,-151.0,0.00013219,2]
[408384919,1773537838638,-151.0,0.00013219,2]
[408384920,1773537838665,-151.0,0.00013219,2]
[408384921,1773537838693,-151.0,0.00013219,2]
[408384922,1773537838721,-72.53661476,0.00013219,2]
[408384923,1773537838807,-78.46338524,0.00013219,2]
[408384924,1773537838833,-151.0,0.00013219,2]
[408384925,1773537838861,-151.0,0.00013219,2]
[408384926,1773537838890,-151.0,0.00013219,2]
[408384927,1773537838917,-151.0,0.00013219,2]
[408384928,1773537838943,-151.0,0.00013219,2]
[408384929,1773537838970,-151.0,0.00013219,2]
[408384930,1773537838996,-151.0,0.00013219,2]
[408384931,1773537839022,-151.0,0.00013219,2]
[408384932,1773537839048,-151.0,0.00013219,2]
[408384933,1773537839074,-151.0,0.00013219,2]
[408384934,1773537839103,-151.0,0.00013219,2]
[408384935,1773537839130,-151.0,0.00013219,2]
[408384936,1773537839157,-151.0,0.00013219,2]
[408384937,1773537839184,-151.0,0.00013219,2]
[408384938,1773537839211,-151.0,0.00013219,2]
[408384939,1773537839237,-151.0,0.00013219,2]
[408384940,1773537839264,-1622.16622952,0.00013226,2]
[408384941,1773537839789,-481.9288188,0.00013127,2]
[408384942,1773537839798,-1363.28533692,0.00013226,2]
[408384943,1773538034144,-231.33896479,0.00012927,2]
[408384944,1773538040062,800.0,0.000126,4]
[408384945,1773538042154,1600.0,0.000127,4]
[408384946,1773538044236,2400.0,0.000128,4]
[408384947,1773538046318,3200.0,0.000129,4]
[408384948,1773538078054,2000.01,0.00011507,2]
[408384949,1773538078076,1609.29,0.00011507,2]
[408384950,1773538121773,-268.66103521,0.00012927,2]
[408384951,1773538121804,-163.227336,0.00012953,2]
[408384952,1773538121836,-300.0,0.00013099,2]
[408384953,1773538121865,-300.0,0.00013099,2]
[408384954,1773538121895,-1200.0,0.00013099,2]
[408384955,1773538122096,-1026.59663497,0.000131,2]
[408384956,1773538122259,-3483.03998764,0.000131,2]
[408384957,1773538122287,-981.95028076,0.000131,2]
[408384958,1773538122318,-1070.0294632,0.000131,2]
[408384959,1773538122346,-2864.76849922,0.000131,2]
[408384960,1773538122378,-2130.41407516,0.000131,2]
[408384961,1773538122408,-258.45332345,0.000131,2]
[408384962,1773538122570,-4777.73479722,0.000131,2]
[408384963,1773538122666,-444.54040556,0.000131,2]
[408384964,1773538122694,-189.19,0.000131,2]
[408384965,1773538122722,-1200.0,0.00013126,2]
[408384966,1773538122753,-3036.60955143,0.00013127,2]
[408384967,1773538122836,-2266.48431264,0.00013127,2]
[408384968,1773538122863,-974.4611244,0.00013127,2]
[408384969,1773538122889,-250.0,0.00013176,2]
[408384970,1773538122916,-151.0,0.00013219,2]
[408384971,1773538122943,-151.0,0.00013219,2]
[408384972,1773538122969,-151.0,0.00013219,2]
[408384973,1773538122996,-151.0,0.00013219,2]
[408384974,1773538123028,-151.0,0.00013219,2]
[408384975,1773538123055,-151.0,0.00013219,2]
[408384976,1773538123080,-151.0,0.00013219,2]
[408384977,1773538123106,-151.0,0.00013219,2]
[408384978,1773538123131,-151.0,0.00013219,2]
[408384979,1773538123158,-149.11912592,0.00013219,2]
[408384980,1773538123437,-1.88087408,0.00013219,2]
[408384981,1773538123447,-149.11912592,0.00013219,2]
[408384982,1773538123465,-1.88087408,0.00013219,2]
[408384983,1773538123473,-149.11912592,0.00013226,2]
[408384984,1773538123487,-151.0,0.00013226,2]
[408384985,1773538123499,-103.34630764,0.00013226,2]
[408384986,1773538123510,-47.65369236,0.00013226,2]
[408384987,1773538123529,-129.40730764,0.00013226,2]
[408384988,1773538123541,-21.59269236,0.00013226,2]
[408384989,1773538123555,-151.0,0.00013226,2]
[408384990,1773538123568,-151.0,0.00013226,2]
[408384991,1773538124637,-176.40730764,0.00013226,2]
[408384992,1773538124665,-444.71506487,0.00013226,2]
[408384993,1773538124695,-500.0,0.00013226,2]
[408384994,1773538124725,-500.0,0.00013226,2]
[408384995,1773538124753,-500.0,0.00013226,2]
[408384996,1773538124781,-500.0,0.00013226,2]
[408384997,1773538124809,-500.0,0.00013226,2]
[408384998,1773538124836,-500.0,0.00013226,2]
[408384999,1773538124865,-500.0,0.00013226,2]
[408385000,1773538124892,-500.0,0.00013226,2]
[408385001,1773538124920,-257.76525498,0.00013226,2]
[408385002,1773538125003,-242.23474502,0.00013226,2]
[408385003,1773538125031,-500.0,0.00013226,2]
[408385004,1773538125059,-500.0,0.00013226,2]
[408385005,1773538125087,-500.0,0.00013226,2]
[408385006,1773538125115,-500.0,0.00013226,2]
[408385007,1773538125144,-392.48250419,0.00013226,2]
[408385008,1773538125175,-500.0,0.00013226,2]
[408385009,1773538125205,-500.0,0.00013226,2]
[408385010,1773538125236,-500.0,0.00013226,2]
[408385011,1773538125265,-500.0,0.00013226,2]
[408385012,1773538125293,-230.57550158,0.00013226,2]
[408385013,1773538125367,-269.42449842,0.00013226,2]
[408385014,1773538125399,-500.0,0.00013226,2]
[408385015,1773538125430,-500.0,0.00013226,2]
[408385016,1773538125460,-500.0,0.00013226,2]
[408385017,1773538125490,-500.0,0.00013226,2]
[408385018,1773538125520,-500.0,0.00013226,2]
[408385019,1773538125549,-500.0,0.00013226,2]
[408385020,1773538125580,-500.0,0.00013226,2]
[408385021,1773538125609,-500.0,0.00013226,2]
[408385022,1773538125637,-500.0,0.00013226,2]
[408385023,1773538125743,-500.0,0.00013226,2]
[408385024,1773538125776,-500.0,0.00013226,2]
[408385025,1773538125807,-500.0,0.00013226,2]
[408385026,1773538125837,-500.0,0.00013226,2]
[408385027,1773538125866,-600.0,0.00013226,2]
[408385028,1773538126025,-500.0,0.00013226,2]
[408385029,1773538126059,-500.0,0.00013226,2]
[408385030,1773538126091,-500.0,0.00013226,2]
[408385031,1773538126119,-500.0,0.00013226,2]
[408385032,1773538126147,-300.01,0.00013226,2]
[408385033,1773538126214,-199.99,0.00013226,2]
[408385034,1773538126241,-185.78329664,0.00013226,2]